fUSD/lending_fUSD_20250206
["ID","MTS","AMOUNT","RATE_DAILY","PERIOD"]
[351865960,1738824680436,-500.0,0.00020214,3]
[351865961,1738824680446,-500.0,0.00020216,3]
[351865962,1738824680457,-500.0,0.00020219,3]
[351865963,1738824680468,-500.0,0.00020219,3]
[351865964,1738824680477,-500.0,0.00020219,3]
[351865965,1738824680488,-3762.82037833,0.0002022,30]
[351865966,1738824680500,-1083.35676796,0.0002022,30]
[351865967,1738824680512,-2954.6990049,0.0002022,30]
[351865968,1738824680541,-500.0,0.00020217,3]
[351865969,1738824680553,-582.45869306,0.0002022,30]
[351865970,1738824680573,-500.0,0.0002,3]
[351865971,1738824680585,-500.0,0.00020219,3]
[351865972,1738824680596,-43511.45032592,0.0002022,30]
[351865973,1738824680610,-447.03076999,0.0002022,30]
[351865974,1738824680623,-5041.35769467,0.0002022,30]
[351865975,1738824680719,-505.87175143,0.0002,3]
[351865976,1738824680729,-53.3796509,0.00020099,3]
[351865977,1738824680742,-446.6203491,0.00020099,3]
[351865978,1738824680753,-294.39639667,0.00020214,3]
[351865979,1738824680762,-500.0,0.00020219,3]
[351865980,1738824680773,-260.1464411,0.00020219,3]
[351865981,1738824680782,-214.32910815,0.00020219,3]
[351865982,1738824680791,-266.70792498,0.0002022,30]
[351865983,1738824680817,-2998.55127245,0.0002022,30]
[351865984,1738824680911,-753.0,0.0002,2]
[351865985,1738824680922,-227.66,0.0002,3]
[351865986,1738824680931,-8061.43,0.0002022,30]
[351865987,1738824680942,-2182.4495584,0.0002022,30]
[351865988,1738824680974,-27644.81006094,0.0002022,30]
[351865989,1738824680986,-56521.05194643,0.0002022,30]
[351865990,1738824681008,-37677.04,0.0002022,30]
[351865991,1738824681121,-95699.6,0.0002022,30]
[351865992,1738824681154,-299627.50058766,0.0002022,30]
[351865993,1738824681191,-3785.15416186,0.0002022,30]
[351865994,1738824681218,-615.9500025,0.0002022,30]
[351865995,1738824681243,-155775.93793769,0.0002022,30]
[351865996,1738824681267,-477.52353113,0.0002022,30]
[351865997,1738824681279,-1019.6452,0.0002022,30]
[351865998,1738824681615,5000.0,8.973e-05,2]
[351865999,1738824711610,6922.8754,8.836e-05,2]
[351866000,1738824713441,160.61278,9.881e-05,2]
[351866001,1738824713754,160.61278,0.00010155,2]
[351866002,1738824714110,160.61278,0.00010429,2]
[351866003,1738824714421,160.61278,0.00010703,2]
[351866004,1738824714751,160.61278,0.00011114,2]
[351866005,1738824715119,160.61278,0.00011388,2]
[351866006,1738824726271,161.77057,9.881e-05,2]
[351866007,1738824726594,161.77057,0.00010155,2]
[351866008,1738824726928,161.77057,0.00010429,2]
[351866009,1738824727276,161.77057,0.00010703,2]
[351866010,1738824727578,161.77057,0.00011114,2]
[351866011,1738824727889,161.77057,0.00011388,2]
[351866012,1738824736713,155.639737,9.881e-05,2]
[351866013,1738824754816,605.7017,8.973e-05,2]
[351866014,1738824755355,389.2425,8.836e-05,2]
[351866015,1738824775483,160.61278,9.881e-05,2]
[351866016,1738824775789,160.61278,0.00010155,2]
[351866017,1738824776126,160.61278,0.00010429,2]
[351866018,1738824776449,160.61278,0.00010703,2]
[351866019,1738824776761,160.61278,0.00010977,2]
[351866020,1738824777501,160.61278,0.00011251,2]
[351866021,1738824779980,200.0732,8.973e-05,2]
[351866022,1738824789253,160.504464,9.881e-05,2]
[351866023,1738824789559,160.504464,0.00010155,2]
[351866024,1738824789765,229.77,0.00010137,2]
[351866025,1738824789880,160.504464,0.00010292,2]
[351866026,1738824790657,160.504464,0.00010566,2]
[351866027,1738824791014,160.504464,0.0001084,2]
[351866028,1738824791348,160.504464,0.00011114,2]
[351866029,1738824791668,160.504464,0.00011251,2]
[351866030,1738824832011,5561.7169,8.836e-05,2]
[351866031,1738824872696,912.084076,8.836e-05,2]
[351866032,1738824872724,441.109124,8.836e-05,2]
[351866033,1738824903522,193.0,8.836e-05,30]
[351866034,1738825087251,-606.67,0.000201,31]
[351866035,1738825087279,-606.67,0.000201,31]
[351866036,1738825087306,-606.67,0.000201,31]
[351866037,1738825087333,-606.67,0.000201,31]
[351866038,1738825087361,-606.67,0.000201,31]
[351866039,1738825087389,-606.67,0.000201,31]
[351866040,1738825087418,-606.67,0.000201,31]
[351866041,1738825087446,-606.67,0.000201,31]
[351866042,1738825087474,-606.67,0.000201,31]
[351866043,1738825087501,-606.67,0.000201,31]
[351866044,1738825087531,-606.67,0.000201,31]
[351866045,1738825087561,-606.67,0.000201,31]
[351866046,1738825087588,-606.67,0.000201,31]
[351866047,1738825087614,-606.67,0.000201,31]
[351866048,1738825087640,-606.67,0.000201,31]
[351866049,1738825087668,-606.67,0.000201,31]
[351866050,1738825131310,3000.0,0.000201,29]
[351866051,1738825135506,2493.6419,8.836e-05,2]
[351866052,1738825153846,227.55,0.000201,29]
[351866053,1738825204005,65.73,0.000201,29]
[351866054,1738825265723,269.92761876,9.959e-05,2]
[351866055,1738825266028,269.92761876,9.963e-05,2]
[351866056,1738825266323,269.92761876,9.998e-05,2]
[351866057,1738825266621,269.92761876,9.945e-05,2]
[351866058,1738825273279,4019.83248883,9.936e-05,2]
[351866059,1738825273435,4019.83248883,9.949e-05,2]
[351866060,1738825273732,4019.83248883,9.993e-05,2]
[351866061,1738825274035,4019.83248883,9.949e-05,2]
[351866062,1738825279545,460.70246366,9.972e-05,2]
[351866063,1738825279853,460.70246366,9.948e-05,2]
[351866064,1738825280136,460.70246366,9.989e-05,2]
[351866065,1738825280403,460.70246366,9.943e-05,2]
[351866066,1738825285462,2236.99571053,9.995e-05,2]
[351866067,1738825285777,2236.99571053,9.966e-05,2]
[351866068,1738825286143,2236.99571053,9.959e-05,2]
[351866069,1738825286428,2236.99571053,9.988e-05,2]
[351866070,1738825293043,2232.20085874,9.953e-05,2]
[351866071,1738825293319,2232.20085874,9.935e-05,2]
[351866072,1738825293616,2232.20085874,9.963e-05,2]
[351866073,1738825293905,2232.20085874,9.936e-05,2]
[351866074,1738825300864,200.0,9.964e-05,2]
[351866075,1738825308355,5126.98149393,9.972e-05,2]
[351866076,1738825308618,5126.98149393,9.989e-05,2]
[351866077,1738825308925,5126.98149393,9.997e-05,2]
[351866078,1738825309188,5126.98149393,9.945e-05,2]
[351866079,1738825313273,267.267334,9.881e-05,2]
[351866080,1738825326189,196312.15937028,9.959e-05,2]
[351866081,1738825326484,196312.15937028,9.986e-05,2]
[351866082,1738825326804,196312.15937028,9.967e-05,2]
[351866083,1738825327077,196312.15937028,9.984e-05,2]
[351866084,1738825331911,161.77057,9.881e-05,2]
[351866085,1738825332245,161.77057,0.00010018,2]
[351866086,1738825332595,161.77057,0.00010155,2]
[351866087,1738825332938,161.77057,0.00010292,2]
[351866088,1738825333258,161.77057,0.00010429,2]
[351866089,1738825333480,4019.83248884,9.94e-05,2]
[351866090,1738825333602,161.77057,0.00010566,2]
[351866091,1738825333877,4019.83248884,9.979e-05,2]
[351866092,1738825333912,161.77057,0.00010703,2]
[351866093,1738825334258,4019.83248884,9.954e-05,2]
[351866094,1738825334300,161.77057,0.00010977,2]
[351866095,1738825334608,161.77057,0.00011114,2]
[351866096,1738825334638,4019.83248884,9.964e-05,2]
[351866097,1738825334931,161.77057,0.00011251,2]
[351866098,1738825335252,161.77057,0.00011388,2]
[351866099,1738825353681,1390.6818,8.836e-05,2]
[351866100,1738825375027,160.61278,9.881e-05,2]
[351866101,1738825375376,160.61278,0.00010018,2]
[351866102,1738825375676,160.61278,0.00010155,2]
[351866103,1738825376001,160.61278,0.00010292,2]
[351866104,1738825376324,160.61278,0.00010429,2]
[351866105,1738825376630,160.61278,0.00010566,2]
[351866106,1738825376955,160.61278,0.00010703,2]
[351866107,1738825377285,160.61278,0.00010977,2]
[351866108,1738825377597,160.61278,0.00011114,2]
[351866109,1738825377927,160.61278,0.00011251,2]
[351866110,1738825378247,160.61278,0.00011388,2]
[351866111,1738825387598,152.907832,9.881e-05,2]
[351866116,1738825503855,164.0,9.881e-05,30]
[351866117,1738825571327,161.77057,9.881e-05,2]
[351866118,1738825615132,160.612781,9.881e-05,2]
[351866120,1738825673299,160.61278,9.881e-05,2]
[351866121,1738825673624,160.61278,0.00010155,2]
[351866122,1738825673931,160.61278,0.00010429,2]
[351866123,1738825674269,160.61278,0.00010566,2]
[351866124,1738825674764,160.61278,0.0001084,2]
[351866125,1738825675096,160.61278,0.00011114,2]
[351866126,1738825675408,160.61278,0.00011251,2]
[351866127,1738825687723,161.77057,9.881e-05,2]
[351866128,1738825688051,161.77057,0.00010155,2]
[351866129,1738825688355,161.77057,0.00010429,2]
[351866130,1738825688674,161.77057,0.00010566,2]
[351866131,1738825689012,161.77057,0.0001084,2]
[351866132,1738825689322,161.77057,0.00011114,2]
[351866133,1738825689633,161.77057,0.00011251,2]
[351866134,1738825698303,155.639737,9.881e-05,2]
[351866135,1738825725804,413.45162113,0.00012,2]
[351866141,1738825803416,165.72817223,9.881e-05,30]
[351866142,1738825809595,161.770571,9.881e-05,2]
[351866143,1738825810042,161.770571,0.00010703,2]
[351866144,1738825810376,161.770571,0.00011388,2]
[351866179,1738825831831,-229.77,0.00016813,2]
[351866180,1738825831842,-150.0,0.00016859,2]
[351866181,1738825831851,-77.51468157,0.0001718,2]
[351866182,1738825831863,-333.62531843,0.0001718,2]
[351866183,1738825831872,-150.0,0.00017392,2]
[351866184,1738825831882,-150.0,0.00018495,2]
[351866185,1738825831892,-1000.0,0.00018863,2]
[351866186,1738825831901,-445.31,0.00018985,2]
[351866187,1738825831910,-3712.3715765,0.00019,2]
[351866188,1738825831920,-241.2,0.00019125,2]
[351866189,1738825831929,-535.65,0.00019156,2]
[351866190,1738825831939,-150.99,0.00019156,2]
[351866191,1738825831948,-138.96344831,0.00019163,2]
[351866192,1738825831960,-1687.03655169,0.00019163,2]
[351866193,1738825831970,-783.0,0.00019163,2]
[351866194,1738825831979,-1264.0,0.00019163,2]
[351866195,1738825831988,-907.0,0.00019163,2]
[351866196,1738825831998,-153.6,0.00019163,2]
[351866197,1738825832007,-150.0,0.00019178,2]
[351866198,1738825832016,-2953.0,0.0001922,2]
[351866199,1738825832025,-539.0,0.0001922,2]
[351866200,1738825832035,-492.27,0.00019269,30]
[351866201,1738825832044,-4023.0,0.00019302,2]
[351866202,1738825832053,-3911.0,0.00019363,2]
[351866203,1738825832062,-1007.0,0.00019363,2]
[351866204,1738825832072,-152.959,0.00019363,2]
[351866205,1738825832081,-1108.0,0.00019363,2]
[351866206,1738825832090,-411.14,0.00019443,2]
[351866207,1738825832100,-150.0,0.00019683,2]
[351866208,1738825832112,-1653.8689492,0.00019815,2]
[351866209,1738825832122,-150.0,0.00019896,2]
[351866210,1738825832131,-4346.4102374,0.00019897,2]
[351866211,1738825832141,-38920.31722733,0.000199,3]
[351866212,1738825832150,-500.0,0.00019911,2]
[351866213,1738825832161,-377583.17173071,0.00019937,2]
[351866214,1738825832174,-5445.06757629,0.00019949,2]
[351866215,1738825832184,-1084.72,0.0001997,2]
[351866216,1738825832195,-160.21942373,0.00019973,2]
[351866217,1738825832205,-151.25690858,0.00019973,2]
[351866218,1738825832214,-151.30964303,0.00019973,2]
[351866219,1738825832223,-152.3096293,0.00019973,2]
[351866220,1738825832232,-170.2078958,0.00019973,2]
[351866221,1738825832242,-500.37378836,0.00019973,2]
[351866223,1738825832252,-500.0,0.00019973,2]
[351866224,1738825832261,-159.48313488,0.00019973,2]
[351866227,1738825832272,-1000.0,0.00019979,2]
[351866229,1738825832282,-214991.315736,0.0001998,30]
[351866232,1738825832304,-8984.30724787,0.0001998,30]
[351866233,1738825832316,-3340.42916274,0.0001998,30]
[351866234,1738825832331,-786.44211909,0.0001998,30]
[351866235,1738825832343,-2862.67930449,0.0001998,30]
[351866236,1738825832355,-17131.23000001,0.0001998,30]
[351866237,1738825832366,-1041.76047077,0.0001998,30]
[351866238,1738825832377,-861.83595903,0.0001998,30]
[351866239,1738825832387,-1084.72,0.0001999,2]
[351866240,1738825832396,-1440.95,0.00019999,2]
[351866241,1738825832406,-500.0,0.00019999,2]
[351866242,1738825832416,-500.0,0.00019999,2]
[351866243,1738825832425,-500.0,0.00019999,2]
[351866244,1738825832434,-500.0,0.00019999,2]
[351866245,1738825832444,-500.0,0.00019999,2]
[351866246,1738825832453,-500.0,0.00019999,2]
[351866247,1738825832463,-500.0,0.00019999,2]
[351866248,1738825832472,-500.0,0.00019999,2]
[351866249,1738825832482,-500.0,0.00019999,2]
[351866250,1738825832494,-467.67047121,0.00019999,2]
[351866251,1738825832504,-197.98,0.00019999,2]
[351866252,1738825832513,-500.0,0.00019999,2]
[351866253,1738825832523,-500.0,0.00019999,2]
[351866254,1738825832532,-289.26467235,0.00019999,2]
[351866259,1738825837649,-1121.0157337,0.00019849,2]
[351866260,1738825837684,-929.73177854,0.00019849,2]
[351866261,1738825837694,-210.73532765,0.00019999,2]
[351866262,1738825837703,-500.0,0.00019999,2]
[351866263,1738825837712,-500.0,0.00019999,2]
[351866264,1738825837721,-500.0,0.00019999,2]
[351866265,1738825837731,-500.0,0.00019999,2]
[351866266,1738825837740,-500.0,0.00019999,2]
[351866267,1738825837749,-500.0,0.00019999,2]
[351866268,1738825837758,-500.0,0.00019999,2]
[351866269,1738825837768,-500.0,0.00019999,2]
[351866270,1738825837777,-221.1,0.00019999,2]
[351866271,1738825837787,-1710.788145,0.0002,2]
[351866272,1738825837796,-500.0,0.0002,3]
[351866273,1738825837806,-3705.71428312,0.0002,2]
[351866274,1738825837817,-1029.46064244,0.0002,2]
[351866275,1738825837894,-1088.82507444,0.0002,2]
[351866276,1738825837904,-502.7475442,0.0002,3]
[351866277,1738825837915,-508.9327415,0.0002,3]
[351866278,1738825837925,-504.18252283,0.0002,3]
[351866279,1738825837935,-197.3017366,0.0002,3]
[351866280,1738825837945,-500.0,0.0002,3]
[351866281,1738825837955,-317.09238505,0.0002,3]
[351866282,1738825837966,-316.18774342,0.0002,3]
[351866283,1738825837976,-642.23270668,0.0002,3]
[351866284,1738825837986,-208.20884358,0.0002,3]
[351866285,1738825837997,-316.81759539,0.0002,3]
[351866286,1738825838007,-504.30751353,0.0002,3]
[351866287,1738825838017,-501.9048822,0.0002,3]
[351866288,1738825838028,-500.34278401,0.0002,3]
[351866290,1738825838038,-501.10786929,0.0002,3]
[351866292,1738825838048,-500.0,0.0002,3]
[351866294,1738825838057,-559.40308699,0.0002,3]
[351866296,1738825838067,-500.0,0.0002,3]
[351866298,1738825838076,-500.0,0.0002,3]
[351866300,1738825838086,-500.0,0.0002,3]
[351866302,1738825838096,-500.0,0.0002,3]
[351866304,1738825838107,-275.2434473,0.0002,3]
[351866306,1738825838116,-508.07941397,0.0002,3]
[351866308,1738825838126,-500.0,0.0002,3]
[351866310,1738825838135,-500.0,0.0002,3]
[351866312,1738825838146,-500.0,0.0002,3]
[351866314,1738825838155,-500.0,0.0002,3]
[351866316,1738825838164,-500.0,0.0002,3]
[351866318,1738825838174,-500.0,0.0002,3]
[351866320,1738825838183,-500.0,0.0002,3]
[351866322,1738825838192,-500.0,0.0002,3]
[351866324,1738825838201,-500.0,0.0002,3]
[351866326,1738825838210,-500.0,0.0002,3]
[351866328,1738825838219,-325.65616397,0.0002,3]
[351866330,1738825838228,-500.0,0.0002,3]
[351866332,1738825838237,-608.12,0.0002,3]
[351866334,1738825838246,-500.0,0.0002,3]
[351866336,1738825838256,-500.0,0.0002,3]
[351866338,1738825838266,-500.0,0.0002,3]
[351866340,1738825838276,-500.0,0.0002,3]
[351866342,1738825838285,-480.64,0.0002,3]
[351866344,1738825838295,-500.0,0.0002,3]
[351866346,1738825838304,-500.0,0.0002,3]
[351866348,1738825838314,-500.0,0.0002,3]
[351866350,1738825838323,-544.16,0.0002,3]
[351866352,1738825838332,-500.0,0.0002,3]
[351866354,1738825838342,-342.89,0.0002,3]
[351866356,1738825838351,-500.70203531,0.0002,3]
[351866358,1738825838360,-500.0,0.0002,3]
[351866360,1738825838369,-500.0,0.0002,3]
[351866362,1738825838378,-500.0,0.0002,3]
[351866364,1738825838387,-500.0,0.0002,3]
[351866366,1738825838396,-164.57,0.0002,3]
[351866368,1738825838406,-500.0,0.0002,3]
[351866370,1738825838416,-500.0,0.0002,3]
[351866372,1738825838425,-500.0,0.0002,3]
[351866374,1738825838434,-292.99643821,0.0002,3]
[351866376,1738825838443,-500.0,0.0002,3]
[351866378,1738825838453,-500.0,0.0002,3]
[351866392,1738825838462,-500.0,0.0002,3]
[351866395,1738825838593,-500.0,0.0002,3]
[351866397,1738825838602,-500.0,0.0002,3]
[351866399,1738825838611,-500.0,0.0002,3]
[351866401,1738825838620,-500.0,0.0002,3]
[351866403,1738825838630,-464.71720031,0.0002,3]
[351866405,1738825838639,-500.0,0.0002,3]
[351866407,1738825838648,-500.0,0.0002,3]
[351866409,1738825838657,-500.0,0.0002,3]
[351866410,1738825838667,-500.0,0.0002,3]
[351866412,1738825838676,-500.0,0.0002,3]
[351866414,1738825838685,-573.44061838,0.0002,3]
[351866417,1738825838696,-500.0,0.0002,3]
[351866419,1738825838704,-500.0,0.0002,3]
[351866421,1738825838714,-300.32,0.0002,3]
[351866423,1738825838723,-500.0,0.0002,3]
[351866424,1738825838732,-500.0,0.0002,3]
[351866426,1738825838741,-500.0,0.0002,3]
[351866428,1738825838751,-500.0,0.0002,3]
[351866430,1738825838761,-500.0,0.0002,3]
[351866432,1738825838771,-500.0,0.0002,3]
[351866434,1738825838780,-161.74,0.0002,3]
[351866436,1738825838789,-500.0,0.0002,3]
[351866438,1738825838799,-500.0,0.0002,3]
[351866440,1738825838808,-500.0,0.0002,3]
[351866442,1738825838817,-500.0,0.0002,3]
[351866444,1738825838826,-500.0,0.0002,3]
[351866446,1738825838835,-500.0,0.0002,3]
[351866448,1738825838845,-500.0,0.0002,3]
[351866450,1738825838853,-559.44,0.0002,3]
[351866452,1738825838863,-500.27008732,0.0002,3]
[351866454,1738825838872,-610.52,0.0002,3]
[351866456,1738825838882,-622.05,0.0002,3]
[351866458,1738825838892,-504.4121037,0.0002,3]
[351866460,1738825838902,-500.0,0.0002,3]
[351866462,1738825838911,-500.0,0.0002,3]
[351866464,1738825838920,-500.0,0.0002,3]
[351866466,1738825838929,-500.2,0.0002,3]
[351866468,1738825838938,-503.33654503,0.0002,3]
[351866470,1738825838947,-501.60443414,0.0002,3]
[351866472,1738825838956,-500.0,0.0002,3]
[351866474,1738825838965,-500.0,0.0002,3]
[351866476,1738825838975,-500.0,0.0002,3]
[351866478,1738825838984,-500.0,0.0002,3]
[351866480,1738825838993,-500.0,0.0002,3]
[351866482,1738825839002,-500.0,0.0002,3]
[351866484,1738825839012,-289.57,0.0002,3]
[351866486,1738825839021,-300.0,0.0002,2]
[351866488,1738825839030,-300.0,0.0002,2]
[351866491,1738825839048,-500.0,0.0002,3]
[351866493,1738825839059,-300.0,0.0002,2]
[351866495,1738825839070,-300.0,0.0002,2]
[351866497,1738825839079,-500.0,0.0002,3]
[351866499,1738825839089,-531.004771,0.0002,2]
[351866501,1738825839100,-500.0,0.0002,3]
[351866503,1738825839110,-500.0,0.0002,3]
[351866505,1738825839119,-500.0,0.0002,3]
[351866507,1738825839129,-346.06,0.0002,3]
[351866509,1738825839138,-500.0,0.0002,3]
[351866511,1738825839148,-500.0,0.0002,3]
[351866513,1738825839157,-417.70469685,0.0002,3]
[351866515,1738825839167,-345.08988055,0.0002,3]
[351866517,1738825839176,-500.0,0.0002,3]
[351866519,1738825839186,-3854.41769225,0.0002,30]
[351866521,1738825839195,-484.63947292,0.0002,30]
[351866523,1738825839205,-501.4767912,0.0002,3]
[351866525,1738825839216,-506.40517025,0.0002,3]
[351866527,1738825839226,-573.41,0.0002,3]
[351866529,1738825839236,-504.04591318,0.0002,3]
[351866531,1738825839246,-503.00902072,0.0002,3]
[351866533,1738825839258,-500.0,0.0002,3]
[351866535,1738825839267,-500.0,0.0002,3]
[351866537,1738825839276,-503.7878425,0.0002,3]
[351866539,1738825839286,-500.0,0.0002,3]
[351866541,1738825839295,-501.65183651,0.0002,3]
[351866543,1738825839305,-500.0,0.0002,3]
[351866545,1738825839314,-500.34744753,0.0002,3]
[351866547,1738825839323,-321.51679016,0.0002,3]
[351866549,1738825839333,-500.0,0.0002,3]
[351866551,1738825839342,-500.0,0.0002,3]
[351866553,1738825839352,-500.0,0.0002,3]
[351866555,1738825839362,-500.0,0.0002,3]
[351866557,1738825839371,-500.0,0.0002,3]
[351866559,1738825839380,-410.87,0.0002,3]
[351866561,1738825839389,-500.0,0.0002,3]
[351866563,1738825839398,-500.0,0.0002,3]
[351866565,1738825839408,-580.03951723,0.0002,3]
[351866567,1738825839418,-500.0,0.0002,3]
[351866569,1738825839428,-500.0,0.0002,3]
[351866571,1738825839437,-500.0,0.0002,3]
[351866573,1738825839447,-500.0,0.0002,3]
[351866574,1738825839456,-500.0,0.0002,3]
[351866577,1738825839466,-500.0,0.0002,3]
[351866578,1738825839475,-533.37,0.0002,3]
[351866580,1738825839485,-500.0,0.0002,3]
[351866583,1738825839495,-500.0,0.0002,3]
[351866584,1738825839504,-573.38,0.0002,3]
[351866586,1738825839514,-500.0,0.0002,3]
[351866588,1738825839523,-500.0,0.0002,3]
[351866590,1738825839533,-500.0,0.0002,3]
[351866593,1738825839542,-258.33,0.0002,3]
[351866594,1738825839552,-500.0,0.0002,3]
[351866596,1738825839561,-500.0,0.0002,3]
[351866599,1738825839571,-537.64467085,0.0002,3]
[351866601,1738825839580,-500.0,0.0002,3]
[351866602,1738825839590,-500.0,0.0002,3]
[351866604,1738825839600,-208.74,0.0002,3]
[351866607,1738825839610,-500.0,0.0002,3]
[351866610,1738825839620,-500.0,0.0002,3]
[351866613,1738825839630,-500.0,0.0002,3]
[351866615,1738825839639,-500.0,0.0002,3]
[351866617,1738825839649,-500.0,0.0002,3]
[351866619,1738825839659,-500.0,0.0002,3]
[351866621,1738825839669,-500.0,0.0002,3]
[351866623,1738825839678,-500.0,0.0002,3]
[351866625,1738825839688,-500.0,0.0002,3]
[351866627,1738825839697,-637.92,0.0002,3]
[351866629,1738825839706,-500.0,0.0002,3]
[351866631,1738825839716,-500.0,0.0002,3]
[351866633,1738825839725,-500.0,0.0002,3]
[351866635,1738825839734,-500.0,0.0002,3]
[351866637,1738825839743,-500.0,0.0002,3]
[351866639,1738825839753,-501.62650398,0.0002,3]
[351866641,1738825839763,-500.0,0.0002,3]
[351866643,1738825839772,-500.0,0.0002,3]
[351866645,1738825839782,-500.0,0.0002,3]
[351866647,1738825839792,-506.16555061,0.0002,3]
[351866649,1738825839802,-500.0,0.0002,3]
[351866651,1738825839811,-500.0,0.0002,3]
[351866653,1738825839821,-500.0,0.0002,3]
[351866655,1738825839830,-509.96236267,0.0002,3]
[351866657,1738825839840,-500.0,0.0002,3]
[351866659,1738825839849,-500.0,0.0002,3]
[351866660,1738825839858,-500.0,0.0002,3]
[351866661,1738825839868,-621.2,0.0002,3]
[351866662,1738825839879,-563.13130617,0.0002,3]
[351866663,1738825839889,-500.0,0.0002,3]
[351866664,1738825839899,-500.0,0.0002,3]
[351866665,1738825839909,-500.0,0.0002,3]
[351866666,1738825839919,-500.0,0.0002,3]
[351866667,1738825839929,-505.52399469,0.0002,3]
[351866668,1738825839939,-500.0,0.0002,3]
[351866669,1738825839949,-500.0,0.0002,3]
[351866670,1738825839959,-500.0,0.0002,3]
[351866671,1738825839969,-500.0,0.0002,3]
[351866672,1738825839979,-500.50081125,0.0002,3]
[351866673,1738825839988,-541.89,0.0002,3]
[351866674,1738825839998,-500.0,0.0002,3]
[351866675,1738825840008,-501.16162729,0.0002,3]
[351866676,1738825840018,-501.84988951,0.0002,3]
[351866677,1738825840027,-500.0,0.0002,3]
[351866678,1738825840037,-500.0,0.0002,2]
[351866680,1738825840047,-500.0,0.0002,3]
[351866682,1738825840056,-500.0,0.0002,3]
[351866684,1738825840066,-503.54933723,0.0002,3]
[351866686,1738825840076,-517.00414961,0.0002,3]
[351866688,1738825840087,-500.0,0.0002,3]
[351866690,1738825840096,-500.0,0.0002,3]
[351866692,1738825840108,-500.0,0.0002,3]
[351866694,1738825840118,-500.0,0.0002,3]
[351866696,1738825840128,-500.0,0.0002,3]
[351866698,1738825840137,-500.0,0.0002,3]
[351866700,1738825840147,-545.79,0.0002,3]
[351866702,1738825840156,-600.89,0.0002,3]
[351866704,1738825840166,-500.0,0.0002,3]
[351866706,1738825840176,-504.95141403,0.0002,3]
[351866708,1738825840187,-500.0,0.0002,3]
[351866709,1738825840196,-500.85541375,0.0002,3]
[351866711,1738825840205,-500.0,0.0002,3]
[351866714,1738825840215,-1000.0,0.0002,20]
[351866715,1738825840225,-500.0,0.0002,3]
[351866718,1738825840234,-500.0,0.0002,3]
[351866719,1738825840244,-500.0,0.0002,3]
[351866722,1738825840254,-503.27337066,0.0002,3]
[351866723,1738825840264,-500.0,0.0002,3]
[351866725,1738825840274,-500.0,0.0002,3]
[351866727,1738825840283,-500.0,0.0002,3]
[351866729,1738825840291,-503.0496763,0.0002,3]
[351866731,1738825840300,-545.56,0.0002,3]
[351866733,1738825840310,-500.0,0.0002,3]